bitfinex-derivatives/quotes_ETHF0:USTF0_20240920
["timestamp","ask_amount","ask_price","bid_price","bid_amount"]
[1726847972987,0.39019,2562.8,2562.6,0.3902]
[1726847973289,0.39019,2562.8,2562.7,3.9032]
[1726847973777,0.39019,2562.7,2562.5,9.23001]
[1726847973974,0.3817,2563.0,2562.5,8.8398]
[1726847974178,0.3902,2562.7,2562.5,13.13321]
[1726847974790,0.9754,2562.9,2562.6,0.3902]
[1726847974988,0.39018,2562.8,2562.7,0.39019]
[1726847975180,0.3817,2563.0,2562.7,3.9032]
[1726847975383,0.3817,2563.0,2562.8,3.9032]
[1726847975384,0.39016,2562.9,2562.8,3.9032]
[1726847977001,4.02981709,2563.1,2562.7,0.79679]
[1726847977002,0.39017,2562.8,2562.7,0.79679]
[1726847977185,0.39017,2562.8,2562.7,4.3098]
[1726847977880,0.97541,2562.9,2562.5,9.23001]
[1726847978087,0.3902,2562.7,2562.5,13.13321]
[1726847978289,0.39019,2562.8,2562.7,3.9032]
[1726847978587,0.39019,2562.8,2562.5,7.111]
[1726847978794,0.39025,2562.3,2562.2,3.2078]
[1726847978986,0.39028,2562.1,2561.9,0.3917]
[1726847979184,3.05447709,2562.6,2561.9,0.3917]
[1726847979185,0.97563,2562.3,2562.1,3.9032]
[1726847979384,0.78217,2562.2,2562.1,3.9032]
[1726847979581,1.1258737,2562.6,2562.1,3.9032]
[1726847979786,0.39027,2562.2,2562.1,3.9032]
[1726847979986,3.71549,2562.7,2562.1,3.9032]
[1726847979987,0.39026,2562.3,2562.1,3.9032]
[1726847980195,0.39024,2562.4,2562.1,3.9032]
[1726847980494,0.39024,2562.4,2562.3,3.9032]
[1726847980495,2.94483711,2562.4,2562.3,3.9032]
[1726847981295,12.45699711,2562.4,2562.1,3.2078]
[1726847981488,12.45699711,2562.4,2561.9,0.3917]
[1726847981489,2.94486711,2562.2,2561.9,0.3917]
[1726847981683,2.43402863,2562.0,2561.9,0.3917]
[1726847981995,0.39031,2561.9,2561.7,3.2078]
[1726847982290,1.53246828,2561.8,2561.7,7.111]
[1726847982494,2.43410653,2561.9,2561.7,7.111]
[1726847982792,2.43411653,2561.8,2561.6,3.9392]
[1726847983091,1.53247351,2561.7,2561.6,7.8424]
[1726847983798,1.53247351,2561.7,2561.4,3.2078]
[1726847983992,0.39037,2561.5,2561.4,3.6106]
[1726847984188,1.41144804,2561.5,2561.4,3.6106]
[1726847984499,0.39037,2561.5,2561.4,0.4028]
[1726847984888,2.43415653,2561.5,2561.4,0.4028]
[1726847986292,0.3904,2561.3,2561.2,0.4019]
[1726847986498,0.3904,2561.3,2560.9,5.632]
[1726847986499,0.39043,2561.1,2561.0,0.4062]
[1726847986794,2.04378653,2561.1,2560.7,3.2078]
[1726847986985,1.41076288,2560.8,2560.7,3.2078]
[1726847987293,1.02028288,2561.2,2560.9,0.39046]
[1726847987511,1.02028288,2561.2,2560.7,7.111]
[1726847987512,1.02028288,2561.2,2561.1,3.9032]
[1726847987693,1.53042433,2561.3,2561.1,3.9032]
[1726847987694,1.41069288,2561.3,2561.1,3.9032]
[1726847987889,1.41069288,2561.3,2561.0,4.0205]
[1726847987890,1.02028288,2561.3,2561.2,3.9032]
[1726847988194,0.39043,2561.2,2561.1,3.9032]
[1726847988700,1.41071288,2561.2,2561.1,3.9032]
[1726847989196,0.39043,2561.1,2561.0,0.8127]
[1726847989397,0.39043,2561.1,2560.7,3.2078]
[1726847989398,0.39048,2560.9,2560.7,3.2078]
[1726847989585,0.39046,2561.0,2560.8,3.9032]
[1726847990399,0.39046,2561.0,2560.9,3.9032]
[1726847990595,1.02028288,2561.2,2560.9,3.9032]
[1726847990894,1.53042433,2561.3,2560.8,0.39047]
[1726847990895,0.39044,2561.1,2560.8,0.39047]
[1726847991197,0.39044,2561.1,2560.8,4.29367]
[1726847991393,0.39044,2561.1,2560.9,3.9032]
[1726847992002,0.39045,2561.0,2560.9,3.9032]
[1726847992196,0.39044,2561.1,2560.9,3.9032]
[1726847992393,0.39045,2561.1,2560.9,3.9032]
[1726847992701,0.39045,2561.1,2559.5,11.71537]
[1726847992702,0.39054,2560.4,2559.8,3.77533044]
[1726847993024,0.39052,2560.6,2560.5,2.279]
[1726847993193,0.39051,2560.6,2560.5,2.279]
[1726847993390,41.1905,2560.7,2560.5,2.279]
[1726847993596,40.8,2560.7,2560.5,2.279]
[1726847993795,0.39051,2560.6,2560.5,2.279]
[1726847993997,1.99377145,2560.8,2560.3,0.3855]
[1726847994299,0.97619,2560.9,2560.3,0.3855]
[1726847994300,0.97624,2560.7,2560.3,0.3855]
[1726847994489,42.79376145,2560.9,2560.8,2.279]
[1726847994490,1.40803145,2560.9,2560.8,2.279]
[1726847994693,5.20140145,2561.3,2560.8,2.279]
[1726847994893,0.39045,2561.0,2560.9,2.6645]
[1726847996895,0.39045,2561.0,2560.9,0.3855]
[1726847999197,2.50233718,2561.4,2560.9,2.6645]
[1726847999198,0.39039,2561.4,2560.9,2.6645]
[1726847999407,0.39041,2561.3,2561.1,2.279]
[1726847999701,1.01757145,2561.7,2561.2,0.3744]
[1726847999702,0.39039,2561.4,2561.2,0.3744]
[1726847999889,1.01757145,2561.7,2561.2,0.3744]
[1726848000100,1.01757145,2561.7,2561.4,2.279]
[1726848000101,0.39034,2561.7,2561.4,2.279]
[1726848000299,0.39034,2561.7,2561.2,0.3744]
[1726848000300,4.121,2562.3,2561.5,0.3722]
[1726848000522,2.34151,2562.3,2561.5,0.3722]
[1726848000803,5.54931,2562.3,2561.5,0.3722]
[1726848000994,5.54931,2562.3,2561.9,2.279]
[1726848001205,11.54931,2562.3,2561.9,2.279]
[1726848001429,11.54931,2562.3,2561.5,0.3722]
[1726848001430,1.5226982,2562.2,2561.5,0.3722]
[1726848001618,1.01513213,2562.1,2561.5,0.76257]
[1726848001915,0.39034,2561.7,2561.5,0.3722]
[1726848002206,0.97575,2562.0,2561.6,0.37]
[1726848002702,0.39034,2561.7,2561.6,0.37]
[1726848002904,0.97575,2562.0,2561.6,0.37]
[1726848003799,3.2078,2562.3,2561.6,0.37]
[1726848005005,0.39034,2561.7,2561.6,0.37]
[1726848005497,0.9758,2561.9,2561.6,0.37]
[1726848005702,0.39036,2561.6,2561.5,0.3722]
[1726848005906,1.36626,2561.6,2561.5,0.3722]
[1726848006103,7.36626,2561.6,2561.5,0.3722]
[1726848006407,1.36626,2561.6,2561.5,0.3722]
[1726848006705,0.39036,2561.6,2561.5,0.3722]
[1726848007508,1.36626,2561.6,2561.5,0.3722]
[1726848007911,2.34216,2561.6,2561.5,0.3722]
[1726848009006,15.8518,2561.6,2560.6,2.74]
[1726848009207,1.36663,2560.9,2560.6,3.5158]
[1726848009708,3.2078,2561.3,2560.8,8.61727]
[1726848009709,0.39044,2561.1,2560.8,8.61727]
[1726848009905,0.39039,2561.4,2561.2,2.279]
[1726848010107,0.39039,2561.4,2561.3,3.0611]
[1726848011002,0.39037,2561.5,2561.3,3.0611]
[1726848011208,0.39037,2561.5,2561.4,2.74]
[1726848011409,0.39036,2561.6,2561.4,5.40938]
[1726848011710,0.39031,2561.9,2561.8,2.279]
[1726848012415,1.36609,2561.9,2561.8,2.279]
[1726848013116,0.39031,2561.9,2561.8,2.279]
[1726848013316,0.39028,2562.2,2561.9,0.39031]
[1726848013622,1.01619902,2562.8,2562.1,2.279]
[1726848013919,2.03239804,2563.1,2562.7,2.279]
[1726848014211,5.11036957,2563.5,2563.0,2.279]
[1726848014212,0.39012,2563.2,2563.0,2.279]
[1726848014409,0.39012,2563.2,2562.8,1.1439]
[1726848014410,0.39011,2563.3,2563.1,2.279]
[1726848014613,0.39011,2563.2,2563.1,2.279]
[1726848015007,0.39011,2563.2,2562.8,1.1439]
[1726848015008,0.39014,2563.0,2562.8,1.1439]
[1726848015305,0.39014,2563.1,2563.0,2.279]
[1726848016607,0.39016,2562.9,2562.8,0.394]
[1726848017102,0.39015,2563.0,2562.8,2.673]
[1726848017306,2.49951957,2563.4,2563.0,2.279]
[1726848017307,0.39013,2563.1,2563.0,2.279]
[1726848017506,0.39011,2563.2,2563.1,2.279]
[1726848018015,3.2078,2563.5,2563.1,2.279]
[1726848018211,0.39011,2563.2,2563.1,2.279]
[1726848020925,0.39016,2562.9,2562.8,0.394]
[1726848021317,0.39016,2562.9,2562.8,2.673]
[1726848021619,0.9754,2562.9,2562.3,3.2078]
[1726848021817,0.39022,2562.5,2562.4,0.3754]
[1726848022029,1.36578,2562.5,2562.4,0.3754]
[1726848022707,0.39022,2562.5,2562.4,0.3754]
[1726848022907,9.9024,2562.5,2561.8,0.3866]
[1726848023110,0.97559,2562.4,2561.8,0.77691]
[1726848023310,0.39027,2562.2,2562.1,2.279]
[1726848023526,0.39026,2562.3,2561.9,0.78391]
[1726848023713,0.3902,2562.6,2562.5,2.279]
[1726848025718,0.39019,2562.7,2562.5,2.279]
[1726848025913,0.97538,2563.0,2562.6,2.6712]
[1726848026118,8.34499902,2563.2,2562.6,2.6712]
[1726848026119,0.39016,2562.9,2562.8,2.279]
[1726848026719,1.36556,2562.9,2562.8,2.279]
[1726848027020,0.39016,2562.9,2562.8,2.279]
[1726848028315,3.91145859,2563.3,2562.8,2.279]
[1726848028316,1.99146902,2563.3,2562.8,2.279]
[1726848028617,1.99146902,2563.3,2563.2,2.279]
[1726848028618,1.36537,2563.3,2563.2,2.279]
[1726848028921,0.3901,2563.3,2563.2,2.279]
[1726848031313,3.59789,2563.4,2563.2,2.279]
[1726848031513,3.59789,2563.4,2563.0,0.4052]
[1726848031514,0.39008,2563.4,2563.3,2.279]
[1726848032518,5.09616,2563.6,2563.3,2.279]
[1726848032716,0.39013,2563.1,2563.0,3.2078]
[1726848033021,1.36546,2563.1,2563.0,2.279]
[1726848033324,0.97537,2563.0,2562.6,0.4012]
[1726848033514,1.36567,2562.7,2562.6,2.279]
[1726848034328,0.39019,2562.7,2562.6,2.279]
[1726848034625,3.2078,2562.8,2562.6,2.279]
[1726848034626,3.59798,2562.8,2562.6,2.279]
[1726848034839,0.39018,2562.8,2562.6,2.279]
[1726848035129,0.39016,2562.9,2562.7,2.279]
[1726848035321,1.39859902,2563.3,2562.6,0.3885]
[1726848035322,0.39015,2563.0,2562.6,0.3885]
[1726848035522,1.35769,2563.3,2562.6,0.3885]
[1726848035523,0.39016,2562.9,2562.6,0.3885]
[1726848035824,1.35769,2563.3,2563.1,2.279]
[1726848035825,0.39011,2563.2,2563.1,2.279]
[1726848036526,0.3901,2563.3,2563.1,2.279]
[1726848036827,0.39009,2563.4,2562.9,1.18116]
[1726848037025,0.39009,2563.4,2563.3,2.279]
[1726848037225,0.39008,2563.4,2563.3,2.279]
[1726848037828,0.39008,2563.5,2563.3,2.279]
[1726848038035,0.39008,2563.5,2563.0,0.39014]
[1726848038330,0.39008,2563.5,2563.4,2.279]
[1726848038921,6.0,2563.5,2563.1,0.3974]
[1726848039132,0.39011,2563.2,2563.1,2.6764]
[1726848039524,0.39011,2563.2,2563.1,2.279]
[1726848041030,1.3654,2563.2,2563.1,2.279]
[1726848041231,0.39014,2563.0,2562.9,0.3996]
[1726848041531,0.39014,2563.0,2562.9,2.279]
[1726848041732,0.97533,2563.1,2562.6,3.9822]
[1726848041931,0.97533,2563.1,2562.8,2.279]
[1726848041932,0.39016,2562.9,2562.8,2.279]
[1726848042537,10.91779902,2562.9,2562.0,0.4021]
[1726848042733,0.39025,2562.3,2562.0,0.7784]
[1726848043126,0.39025,2562.3,2562.2,2.279]
[1726848043331,0.39024,2562.4,2562.2,2.279]
[1726848043530,0.39024,2562.4,2562.3,2.279]
[1726848045238,1.01619902,2562.6,2562.3,2.279]
[1726848045542,0.39025,2562.3,2562.0,0.7784]
[1726848045734,0.39027,2562.2,2562.0,0.7784]
[1726848045937,5.10556957,2562.7,2561.8,0.3932]
[1726848045938,4.22399902,2562.4,2561.8,0.3932]
[1726848046233,4.22399902,2562.4,2561.8,2.279]
[1726848046234,0.97574,2562.1,2561.8,2.279]
[1726848046542,0.97574,2562.1,2561.7,0.4015]
[1726848046543,0.39033,2561.8,2561.7,0.4015]
[1726848046838,0.39033,2561.8,2561.7,2.6805]
[1726848047132,0.39033,2561.8,2561.7,2.279]
[1726848047632,4.57395,2561.8,2561.7,2.279]
[1726848047836,6.09821957,2561.8,2561.7,2.279]
[1726848048433,6.09821957,2561.8,2561.5,0.4007]
[1726848048434,0.39036,2561.6,2561.5,0.4007]
[1726848049530,0.39036,2561.6,2561.2,0.4015]
[1726848049531,0.3904,2561.3,2561.2,0.4015]
[1726848049841,1.36641,2561.3,2561.2,2.279]
[1726848050037,1.36641,2561.3,2560.7,0.4075]
[1726848050038,0.39048,2560.8,2560.7,0.4075]
[1726848050240,4.57435,2561.1,2561.0,2.279]
[1726848050830,5.59186519,2561.1,2561.0,2.279]
[1726848051132,0.39048,2560.8,2560.7,0.4075]
[1726848051335,0.39048,2560.8,2560.7,2.6865]
[1726848051533,4.57448,2560.8,2560.7,2.6865]
[1726848051735,1.36668,2560.8,2560.7,2.279]
[1726848052233,1.01751519,2561.0,2560.3,0.7841]
[1726848052234,0.3905,2560.7,2560.3,0.7841]
[1726848052440,0.39046,2560.9,2560.8,2.279]
[1726848052638,1.36663,2560.9,2560.8,2.279]
[1726848052840,0.39046,2560.9,2560.8,2.279]
[1726848053045,1.99361519,2561.1,2560.3,1.17465]
[1726848053046,0.3905,2560.7,2560.3,1.17465]
[1726848053240,0.3905,2560.7,2560.3,0.7841]
[1726848053543,0.39051,2560.6,2560.3,0.7841]
[1726848053836,0.39052,2560.6,2560.3,0.7841]
[1726848054141,1.36679,2560.6,2560.5,2.279]
[1726848054534,0.39059,2560.1,2559.9,3.5984]
[1726848054735,0.97636,2560.4,2560.3,2.279]
[1726848054736,1.3669,2560.4,2560.3,2.279]
[1726848055037,3.2078,2560.6,2559.9,0.7956]
[1726848055038,0.3906,2560.0,2559.9,0.7956]
[1726848055435,0.3906,2560.0,2559.9,3.0746]
[1726848056038,4.18419,2560.3,2559.9,3.0746]
[1726848056243,0.39057,2560.2,2560.1,2.279]
[1726848056538,4.18419,2560.3,2559.9,0.4077]
[1726848056539,1.36711,2560.0,2559.9,0.4077]
[1726848056742,0.3906,2560.0,2559.9,0.4077]
[1726848057037,0.3906,2560.0,2559.9,2.6867]
[1726848057335,0.39068,2559.5,2559.0,3.59854]
[1726848057537,0.3906,2560.0,2559.9,2.279]
[1726848058744,3.59839,2560.1,2559.9,2.279]
[1726848058932,3.59839,2560.1,2560.0,2.279]
[1726848059140,3.2078,2560.1,2560.0,2.279]
[1726848059537,0.7447,2560.7,2560.0,2.279]
[1726848059733,0.7447,2560.7,2559.8,0.7776]
[1726848059734,0.39049,2560.7,2560.6,2.279]
[1726848060649,4.18391,2561.1,2560.6,2.279]
[1726848060840,4.18391,2561.1,2560.6,0.3905]
[1726848060841,0.39045,2561.0,2560.6,0.3905]
[1726848061142,0.39042,2561.2,2561.0,2.279]
[1726848061444,0.39042,2561.2,2560.7,0.4004]
[1726848061445,3.59819,2561.4,2561.3,2.279]
[1726848061643,3.59819,2561.4,2560.8,0.39048]
[1726848061644,0.39044,2561.1,2560.8,0.39048]
[1726848061848,0.39043,2561.2,2560.9,0.39046]
[1726848062346,0.39043,2561.2,2561.1,2.279]
[1726848062540,1.36648,2561.2,2561.1,2.279]
[1726848062741,1.36648,2561.2,2560.7,0.4004]
[1726848062742,0.39048,2560.8,2560.7,0.4004]
[1726848062944,0.39047,2560.9,2560.7,0.4004]
[1726848063144,4.57432,2561.1,2561.0,2.279]
[1726848063442,3.59823,2561.1,2561.0,2.279]
[1726848063841,4.57432,2561.1,2561.0,2.279]
[1726848064530,3.2078,2561.4,2561.0,2.279]
[1726848064741,3.2078,2561.4,2561.2,2.279]
[1726848064936,0.97587,2561.7,2561.3,2.279]
[1726848064937,3.2078,2561.7,2561.3,2.279]
[1726848065139,1.3833,2561.9,2560.9,6.5778]
[1726848065140,0.39037,2561.5,2560.9,6.5778]
[1726848065338,0.39036,2561.6,2561.5,2.279]
[1726848065942,1.36626,2561.6,2561.5,2.279]
[1726848066540,0.97594,2561.5,2561.2,0.3711]
[1726848066745,0.39039,2561.4,2561.3,2.279]
[1726848067051,1.36636,2561.4,2561.3,2.279]
[1726848067439,1.36636,2561.4,2560.7,1.16198]
[1726848067440,0.39046,2561.0,2560.7,1.16198]
[1726848067638,0.39044,2561.1,2561.0,2.279]
[1726848067846,0.3904,2561.3,2561.2,2.279]
[1726848068058,0.3904,2561.3,2560.7,0.7715]
[1726848068247,0.3904,2561.3,2561.2,2.279]
[1726848069042,3.2078,2561.7,2561.2,2.279]
[1726848069241,0.9759,2561.6,2561.4,2.279]
[1726848069444,1.36631,2561.5,2561.4,2.279]
[1726848069646,0.39037,2561.5,2561.4,2.279]
[1726848070950,1.36631,2561.5,2561.4,2.279]
[1726848071341,6.97594,2561.5,2560.8,0.39047]
[1726848071541,3.2078,2561.4,2561.2,2.279]
[1726848071848,0.97594,2561.5,2561.2,2.279]
[1726848071849,0.39041,2561.3,2561.2,2.279]
[1726848072044,0.39039,2561.4,2561.2,2.279]
[1726848072246,0.39039,2561.4,2561.2,2.6696]
[1726848072445,0.39039,2561.4,2561.3,0.4032]
[1726848072649,0.39039,2561.4,2561.3,2.6822]
[1726848072846,1.36636,2561.4,2561.3,2.6822]
[1726848073249,9.59819,2561.4,2560.7,0.372]
[1726848073468,0.39045,2561.0,2560.9,2.279]
[1726848073949,3.59819,2561.4,2560.7,1.16569]
[1726848073950,4.18379,2561.4,2560.7,0.7752]
[1726848074152,0.39046,2560.9,2560.7,0.7752]
[1726848074555,0.39046,2560.9,2560.8,2.279]
[1726848075255,4.18379,2561.4,2560.8,2.279]
[1726848075451,0.3904,2561.3,2561.2,2.279]
[1726848075952,3.2078,2561.7,2561.2,2.279]
[1726848076162,0.39039,2561.4,2561.3,0.4056]
[1726848076355,0.9759,2561.6,2561.4,2.279]
[1726848076356,0.39038,2561.5,2561.4,2.279]
[1726848076555,1.36632,2561.5,2561.4,2.279]
[1726848077160,1.36636,2561.4,2561.3,0.4056]
[1726848077358,0.39039,2561.4,2560.9,3.2078]
[1726848077556,0.3904,2561.3,2561.2,2.279]
[1726848077857,1.36641,2561.3,2561.2,2.279]
[1726848078053,0.3904,2561.3,2561.2,2.279]
[1726848078452,16.4818,2561.3,2560.6,0.3866]
[1726848078647,0.39051,2560.6,2560.2,0.4103]
[1726848078851,4.18398,2560.9,2560.6,2.279]
[1726848078852,3.2078,2560.9,2560.6,2.279]
[1726848079053,0.39048,2560.8,2560.7,2.279]
[1726848079352,3.2078,2560.9,2560.8,2.279]
[1726848079656,0.39046,2561.0,2560.8,2.279]
[1726848079860,0.39046,2561.0,2560.6,0.3862]
[1726848080061,0.39046,2561.0,2560.9,2.279]
[1726848081054,0.39047,2560.9,2560.6,0.3862]
[1726848081362,0.39046,2561.0,2560.6,0.3862]
[1726848081558,0.39046,2560.9,2560.6,0.3862]
[1726848081759,0.39048,2560.8,2560.7,0.3834]
[1726848081958,0.39053,2560.5,2560.2,0.4103]
[1726848082159,3.2078,2560.9,2560.2,0.4103]
[1726848082160,0.39055,2560.4,2560.3,2.279]
[1726848082359,0.39055,2560.4,2560.2,0.7965]
[1726848082360,0.39055,2560.3,2560.2,3.0755]
[1726848082667,0.39055,2560.3,2560.2,2.6652]
[1726848083157,40.8,2560.5,2560.2,2.6652]
[1726848083357,3.2078,2560.6,2560.2,2.6652]
[1726848083955,0.39055,2560.3,2560.2,2.6652]
[1726848084155,3.59835,2560.3,2560.2,2.279]
[1726848084750,0.3906,2560.0,2559.8,1.1839]
[1726848084956,0.39059,2560.1,2559.9,2.279]
[1726848085161,3.59839,2560.1,2560.0,2.279]
[1726848085760,0.39058,2560.2,2560.0,2.279]
[1726848086058,0.39058,2560.2,2560.1,2.279]
[1726848086454,0.39061,2560.0,2559.8,1.1839]
[1726848086652,3.2078,2560.2,2559.8,2.6885]
[1726848086857,0.39062,2559.9,2559.8,2.6885]
[1726848087459,0.39062,2559.9,2559.3,0.3795]
[1726848087460,0.97658,2559.8,2559.3,0.3795]
[1726848087758,0.39069,2559.4,2559.3,2.279]
[1726848087962,6.0,2559.4,2558.8,0.3795]
[1726848088262,0.39074,2559.1,2559.0,2.279]
[1726848088965,0.97678,2559.3,2559.0,2.279]
[1726848088966,4.22531519,2559.3,2559.0,2.279]
[1726848089155,0.39074,2559.1,2558.8,0.7686]
[1726848089358,1.99423519,2559.5,2559.3,2.279]
[1726848089554,1.99423519,2559.5,2558.8,0.7686]
[1726848089555,1.3674,2559.5,2559.4,2.279]
[1726848089862,2.38491519,2559.5,2559.4,2.279]
[1726848090162,0.39076,2559.0,2558.8,0.7686]
[1726848090363,0.39074,2559.1,2559.0,2.279]
[1726848091364,0.39077,2558.9,2558.8,0.3894]
[1726848091666,0.39077,2558.9,2558.5,0.3798]
[1726848091667,0.39081,2558.6,2558.5,0.3798]
[1726848092068,0.39081,2558.6,2558.5,2.6588]
[1726848092566,3.2078,2558.9,2558.5,2.6588]
[1726848092763,0.39076,2559.0,2558.8,2.279]
[1726848092964,0.39076,2559.0,2558.9,2.279]
[1726848093266,0.39079,2558.8,2558.5,0.3798]
[1726848093563,0.97697,2558.8,2558.5,2.279]
[1726848093760,3.2078,2558.9,2558.2,0.3874]
[1726848093761,0.39086,2558.3,2558.2,0.3874]
[1726848094161,1.36802,2558.3,2558.2,0.3874]
[1726848094359,4.2249366,2558.6,2558.2,2.6664]
[1726848094573,0.97698,2558.8,2558.5,2.279]
[1726848094865,1.36776,2558.8,2558.7,2.279]
[1726848095066,0.97698,2558.8,2558.5,2.279]
[1726848095269,0.39082,2558.6,2558.5,2.279]
[1726848095467,0.97708,2558.5,2558.0,0.41]
[1726848095673,0.97708,2558.5,2558.1,2.279]
[1726848095674,0.39088,2558.2,2558.1,2.279]
[1726848096176,6.0,2558.2,2557.9,0.7923]
[1726848096468,3.2078,2558.4,2557.9,3.0713]
[1726848096669,3.2078,2558.4,2557.7,0.3762]
[1726848096670,0.97731,2557.9,2557.3,0.3906]
[1726848096862,0.39101,2557.4,2557.2,4.3532]
[1726848097067,0.39097,2557.6,2557.5,2.279]
[1726848097271,0.97743,2557.6,2557.2,4.3532]
[1726848097464,0.39099,2557.5,2557.4,2.279]
[1726848097664,0.39099,2557.5,2557.3,2.279]
[1726848097871,3.2078,2557.8,2557.4,2.279]
[1726848098089,1.0171366,2558.1,2557.2,0.7692]
[1726848098090,0.39093,2557.9,2557.7,2.279]
[1726848098369,0.97731,2557.9,2557.5,2.279]
[1726848098567,0.39097,2557.6,2557.5,2.279]
[1726848098972,0.97723,2558.1,2557.5,2.279]
[1726848098973,3.2078,2558.1,2557.5,2.279]
[1726848099162,3.2078,2557.6,2556.3,4.1857]
[1726848099362,3.2078,2557.6,2556.9,0.4068]
[1726848099363,0.39105,2557.1,2556.9,0.4068]
[1726848099566,0.39104,2557.1,2557.0,0.7682]
[1726848099776,0.9775,2557.4,2557.0,2.10615]
[1726848099967,4.18511,2558.0,2557.3,1.33795]
[1726848100176,0.39094,2557.8,2557.6,1.33795]
[1726848100372,4.18511,2558.0,2557.6,1.33795]
[1726848100373,0.39095,2557.7,2557.6,1.33795]
[1726848100577,3.2078,2558.0,2557.6,0.39096]
[1726848100773,0.39093,2557.9,2557.7,1.33795]
[1726848101074,0.39093,2557.9,2557.7,2.13455]
[1726848101265,3.2078,2558.3,2557.8,1.33795]
[1726848101466,0.97704,2558.6,2558.2,1.33795]
[1726848101775,0.39081,2558.6,2558.5,1.33795]
[1726848102072,1.36785,2558.6,2558.5,1.33795]
[1726848103566,0.39084,2558.5,2558.3,0.4041]
[1726848103766,3.59861,2558.7,2558.4,1.33795]
[1726848103968,3.2078,2558.7,2558.5,1.72877]
[1726848104173,3.5986,2558.7,2558.5,1.33795]
[1726848104379,0.39081,2558.6,2558.5,1.33795]
[1726848104565,3.2078,2558.7,2558.5,1.33795]
[1726848104769,3.59861,2558.7,2558.5,1.33795]
[1726848104970,0.3935,2559.4,2558.6,1.33795]
[1726848104971,3.2078,2559.0,2558.6,1.33795]
[1726848105178,3.2078,2559.0,2558.9,1.72872]
[1726848105379,3.2078,2559.2,2558.9,1.33795]
[1726848105588,4.57535,2559.2,2559.1,1.33795]
[1726848105768,4.57535,2559.2,2558.6,1.33795]
[1726848105769,0.3908,2558.7,2558.6,1.33795]
[1726848106078,4.18475,2558.9,2558.6,1.33795]
[1726848106269,4.18475,2558.9,2558.3,0.39086]
[1726848106270,0.39084,2558.5,2558.3,0.39086]
[1726848106471,0.39082,2558.6,2558.5,1.33795]
[1726848106665,0.39081,2558.6,2558.5,1.33795]
[1726848109181,0.39084,2558.4,2558.3,0.3781]
[1726848109379,0.39084,2558.4,2558.3,2.10691]
[1726848109573,0.39084,2558.4,2558.3,1.71605]
[1726848110274,9.9088,2558.4,2558.0,0.3765]
[1726848110470,0.39089,2558.1,2558.0,1.71445]
[1726848110670,0.39089,2558.1,2557.9,0.381]
[1726848110671,3.9096,2558.1,2557.9,0.381]
[1726848110876,3.9096,2558.0,2557.6,3.2078]
[1726848111175,0.39092,2558.0,2557.8,1.33795]
[1726848111378,0.39092,2557.9,2557.8,1.33795]
[1726848111573,0.97727,2558.0,2557.5,1.1683]
[1726848111774,1.36942,2558.2,2557.7,1.7289]
[1726848112081,0.39093,2557.9,2557.8,1.33795]
[1726848113069,0.39092,2558.0,2557.8,1.72889]
[1726848113275,0.39086,2558.4,2558.1,1.33795]
[1726848113473,0.39083,2558.5,2558.4,1.33795]
[1726848113974,0.39086,2558.3,2558.2,1.1392]
[1726848114171,0.39086,2558.3,2558.2,2.47715]
[1726848114676,0.39084,2558.5,2558.4,0.39084]
[1726848114874,0.39083,2558.5,2558.4,1.72878]
[1726848115074,4.18474,2558.9,2558.4,1.33795]
[1726848115277,0.39082,2558.6,2558.5,1.33795]
[1726848115477,0.39082,2558.6,2558.5,1.72878]
[1726848115866,0.39086,2558.3,2558.2,1.1392]
[1726848116079,0.97678,2559.3,2558.4,2.31507]
[1726848116280,0.97678,2559.3,2558.8,1.33795]
[1726848116281,0.97685,2559.1,2558.8,1.33795]
[1726848116481,0.39077,2558.9,2558.8,1.33795]
[1726848116683,0.39077,2558.9,2558.8,1.72135]
[1726848117183,0.39074,2559.1,2559.0,0.39074]
[1726848117370,0.39074,2559.1,2559.0,1.72869]
[1726848117682,0.39074,2559.1,2559.0,1.33795]
[1726848118582,0.39074,2559.1,2559.0,1.7287]
[1726848118979,3.59853,2559.2,2559.1,0.39074]
[1726848119186,3.59852,2559.2,2559.1,1.33795]
[1726848119389,4.57533,2559.2,2559.1,1.33795]
[1726848120271,0.39075,2559.0,2558.8,0.3834]
[1726848120589,3.2078,2559.2,2559.1,1.33795]
[1726848120887,3.59852,2559.2,2559.1,1.33795]
[1726848121477,4.57533,2559.2,2559.1,1.33795]
[1726848121782,3.59852,2559.2,2559.1,1.33795]
[1726848121984,0.39077,2558.9,2558.8,0.3834]
[1726848122373,0.39081,2558.6,2558.5,0.3955]
[1726848122578,0.39081,2558.6,2558.5,0.7654]
[1726848122780,4.29961,2558.6,2558.5,0.3699]
[1726848123687,0.39078,2558.8,2558.5,1.70785]
[1726848123876,0.39078,2558.8,2558.7,1.33795]
[1726848124082,0.3908,2558.7,2558.6,1.33795]
[1726848124485,0.3908,2558.7,2558.5,0.3699]
[1726848124690,0.39081,2558.6,2558.5,0.3699]
[1726848125088,0.39081,2558.6,2558.1,3.2078]
[1726848125089,0.9771,2558.5,2558.1,3.2078]
[1726848125393,0.39088,2558.2,2558.1,4.54575]